Cogmind - Beta 14 @@@ ROGUE MODE // 2024.09.03 @ 07:08:18 Player: bugsniper Result: Destroyed by TL-W0M(R) with Subdweller Machine Gun Performance ------------- Evolutions (0) 0 Regions Visited (3) 600 Robots Destroyed (24) 120 Value Destroyed (613) 613 Prototype IDs (2) 40 Alien Tech Used (0) 0 Bonus (0) 0 TOTAL SCORE: 1373 Bonus ------- None Cogmind --------- Core Integrity 0/250 Matter 282/300 Energy 250/250 System Corruption 0% Temperature Cool (0) Movement Rolling (110) Location -10/Subcaves Parts ------- > --- POWER (1) -------- Ion Engine > --- PROPULSION (2) --- Light Treads Subdweller Monowheel > --- UTILITY (2) ------ Small Storage Unit Structural Scanner > --- WEAPON (2) ------- Subdweller Machine Gun Battle Cannon > --- INVENTORY (8) ---- Disposable Heat Sink Light Cannon Battle Cannon Grenade Launcher Subdweller Shrapnel Launcher Plasma Flamer Hammer Peak State ------------ > --- POWER ------------ Ion Engine > --- PROPULSION ------- Aluminum Leg Aluminum Leg > --- UTILITY ---------- Disposable Heat Sink Small Storage Unit > --- WEAPON ----------- Assault Rifle Plasma Flamer > --- INVENTORY -------- Ion Engine Light Treads Light Treads Structural Scanner Assault Rifle Light Cannon Grenade Launcher Hammer [Rating: 12] Favorites ----------- Power Ion Engine Engine Ion Engine Propulsion Light Treads Treads Light Treads Leg Aluminum Leg Wheel Subdweller Monowheel Utility Small Storage Unit Device Structural Scanner Storage Small Storage Unit Weapon Assault Rifle Ballistic Gun Assault Rifle Ballistic Cannon Battle Cannon Launcher Grenade Launcher Special Weapon Plasma Flamer Impact Weapon Hammer Build | -11 -10 -10 -10 ------- Run | Yrd Mat Min Sub Slots Evolved . | . . . . Power . | . . . . Propulsion . | . . . . Utility . | . . . . Weapon . | . . . . Parts Attached 23 | . 2 4 17 Power 1 | . . . 1 Engine 1 | . . . 1 Core . | . . . . Reactor . | . . . . Propulsion 3 | . . . 3 Treads 2 | . . . 2 Leg . | . . . . Wheel 1 | . . . 1 Hover . | . . . . Flight . | . . . . Utility 5 | . . 1 4 Device 5 | . . 1 4 Storage . | . . . . Processor . | . . . . Hackware . | . . . . Protection . | . . . . Artifact . | . . . . Weapon 14 | . 2 3 9 Energy Gun . | . . . . Energy Cannon . | . . . . Ballistic Gun 3 | . 1 1 1 Ballistic Cannon 6 | . 1 1 4 Launcher 3 | . . 1 2 Special Weapon 1 | . . . 1 Impact Weapon 1 | . . . 1 Slashing Weapon . | . . . . Piercing Weapon . | . . . . Special Melee Weapon . | . . . . Unidentified Prototypes . | . . . . Parts Lost 3 | . . . 3 Power . | . . . . Propulsion 2 | . . . 2 Utility . | . . . . Weapon 1 | . . . 1 Highest Loss Streak 2 | . . . 2 To Critical Strikes . | . . . . Average Slot Usage (%) 97 | . 85 96 99 Engine 14 | . 14 14 14 Treads 14 | . . . 23 Leg 13 | . 28 28 4 Device 11 | . . 10 14 Storage 14 | . 14 14 14 Ballistic Gun 11 | . 15 25 4 Ballistic Cannon 10 | . 12 2 13 Launcher 3 | . . . 6 Special Weapon 2 | . . . 3 Peak Build Rating 12 | . 6 8 12 Average Rating 8 | . 6 7 9 On Entrance 6 | 6 6 6 8 Naked Turns . | . . . . Heaviest Build 22 | 12 15 15 22 Greatest Support 40 | 20 20 20 40 Greatest Overweight (x) . | . . . . Average Overweight (x) . | . . . . Largest Inventory Capacity 8 | . 8 8 8 Average Capacity 8 | . 8 8 8 Most Carried 8 | . 8 8 8 Average Carried 7 | . 6 7 7 Final Capacity 8 | 8 8 8 8 Final Carried 8 | 6 8 8 7 Class Distribution -------------------- 100% | Mutant Dominant Class ---------------- Mutant | -10/Materials Mutant | -10/Mines Mutant | -10/Subcaves Resources | -11 -10 -10 -10 ----------- Run | Yrd Mat Min Sub Matter Collected 917 | 200 37 206 474 Remotely . | . . . . Salvage Created 534 | . 35 245 254 Parts 31 | . . 16 15 Haulers Intercepted . | . . . . Recyclers Shooed . | . . . . Parts Field Recycled . | . . . . Retrieved Matter . | . . . . Parts Self-Destructed 11 | . . . 11 Prevented . | . . . . Kills | -11 -10 -10 -10 ------- Run | Yrd Mat Min Sub Combat Hostiles Destroyed 17 | . 1 5 11 Guns 2 | . . 1 1 Cannons 6 | . 1 1 4 AOE 8 | . . 3 5 Classes Destroyed 7 | . 1 5 1 Worker 3 | . . 3 . Builder 1 | . . 1 . Tunneler 2 | . . 2 . Recycler 1 | . . 1 . Swarmer 3 | . . 3 . Grunt 3 | . 1 2 . Subdweller 11 | . . . 11 Best Kill Streak 4 | . 1 4 3 Combat Bots Only 3 | . 1 3 3 Max Kills in Single Turn 4 | . 1 4 1 Gunslinging . | . . . . Exploded 3 | . . 3 1 Melee . | . . . . Uniques/NPCs Destroyed . | . . . . Combat | -11 -10 -10 -10 -------- Run | Yrd Mat Min Sub Hostile Shots Fired 73 | . 6 7 60 Missed 22 | . 3 2 17 Damage Taken 1070 | . 76 55 939 Core 265 | . 24 20 221 Absorbed by Shields . | . . . . Core Remaining (%) 100 | 100 . . . Volleys Fired 67 | . 3 24 40 Largest 2 | . 2 2 2 Hottest 135 | . 55 55 135 Shots Fired 115 | . 6 47 62 Gun 45 | . 3 28 14 Cannon 39 | . 3 18 18 Launcher 18 | . . 1 17 Special 13 | . . . 13 Kinetic 89 | . 6 46 37 Thermal 13 | . . . 13 Explosive 13 | . . 1 12 Electromagnetic . | . . . . Robot Hit Streak 21 | . 2 6 21 Robot Miss Streak 5 | . 1 5 2 Penetration Max . | . . . . Secondary Targets . | . . . . Shots Hit Robots 71 | . 4 23 44 Core Hits 35 | . 2 16 17 Critical Kills . | . . . . Critical Parts Destroyed . | . . . . Critical Strikes 6 | . . 1 5 Burn 2 | . . . 2 Blast 4 | . . 1 3 Melee Attacks 2 | . . . 2 Impact 2 | . . . 2 Slashing . | . . . . Piercing . | . . . . Sneak Attacks . | . . . . Combat Hostiles . | . . . . Follow-up Attacks . | . . . . Damage Inflicted 1858 | . 77 452 1329 Guns 362 | . 28 169 165 Cannons 485 | . 38 170 277 Explosions 861 | . . 113 748 Melee . | . . . . Ramming 11 | . 11 . . Kinetic 1187 | . 66 339 782 Thermal 139 | . . . 139 Explosive 521 | . . 113 408 Electromagnetic . | . . . . Impact . | . . . . Slashing . | . . . . Piercing . | . . . . Highest Corruption . | . . . . Average Corruption . | . . . . Corruption Purged . | . . . . Corruption Blocked . | . . . . Overload Shots . | . . . . Overflow Damage 6 | . . 6 . Projectiles 6 | . . 6 . Explosions . | . . . . Melee . | . . . . Knockbacks 4 | . . 1 3 Impact . | . . . . Kinetic 4 | . . 1 3 Secondary . | . . . . Self-Inflicted Damage 54 | . . . 54 Shots 3 | . . . 3 Rammed . | . . . . Targets Rammed 1 | . 1 . . Kicked 1 | . 1 . . Crushed . | . . . . Highest Temperature 36 | . 6 7 36 Average Temperature 10 | . 3 3 12 Received Heat Transfer 150 | . 12 15 123 Siege Activations . | . . . . Robots Corrupted . | . . . . Combat Hostiles . | . . . . Parts Fried . | . . . . Impact Corruptions . | . . . . Robots Melted 1 | . . . 1 Combat Hostiles 1 | . . . 1 Parts Melted 2 | . . . 2 Heat Transferred 1200 | . . . 1200 Parts Sabotaged . | . . . . Parts Stolen . | . . . . Parts Stripped . | . . . . Power Chain Reactions . | . . . . Alert | -11 -10 -10 -10 ------- Run | Yrd Mat Min Sub Peak Influence 186 | . 75 186 . Initial 28 | . . 28 . Average 62 | . 20 79 . Maximum Alert Level . | . . . . Low Security (%) 100 | . 100 100 . Level 1 . | . . . . Level 2 . | . . . . Level 3 . | . . . . Level 4 . | . . . . Level 5 . | . . . . High Security . | . . . . Max Security . | . . . . Squads Dispatched 1 | . 1 . . Investigation 1 | . 1 . . Extermination . | . . . . Reinforcement . | . . . . Assault . | . . . . Garrison . | . . . . Intercept . | . . . . Searches Triggered . | . . . . Construction Impeded . | . . . . Haulers Reinforced . | . . . . Active Scanning Responses . | . . . . Cargo Convoy Interrupts . | . . . . Stealth | -11 -10 -10 -10 --------- Run | Yrd Mat Min Sub Distress Signals 1 | . 1 . . Communications Jammed . | . . . . Distress Signals . | . . . . Times Spotted 23 | . 6 5 12 Peak Tracking Total 7 | . 7 3 3 Tactical Retreats . | . . . . Traps | -11 -10 -10 -10 ------- Run | Yrd Mat Min Sub Traps Triggered 1 | . 1 . . Indirectly . | . . . . Trap Hack Attempts . | . . . . Triggered . | . . . . Disarmed . | . . . . Reprogrammed . | . . . . Reused . | . . . . Traps Extracted . | . . . . Installed . | . . . . Triggered . | . . . . Machines | -11 -10 -10 -10 ---------- Run | Yrd Mat Min Sub Machines Disabled . | . . . . Max in Single Turn . | . . . . Machines Repaired . | . . . . Machines Dismantled . | . . . . Machines Sabotaged . | . . . . Overloaded Fab Kills . | . . . . Hacking | -11 -10 -10 -10 --------- Run | Yrd Mat Min Sub Machines Accessed 3 | . 2 . 1 Terminals 1 | . 1 . . Fabricators . | . . . . Repair Stations . | . . . . Recycling Units 1 | . 1 . . Scanalyzers . | . . . . Garrison Access . | . . . . Total Hacks 11 | . 6 . 5 Successful 8 | . 3 . 5 Failed 3 | . 3 . . Catastrophic . | . . . . Database Lockouts . | . . . . Manual 2 | . 2 . . Terminals 4 | . 4 . . Fabricators . | . . . . Repair Stations . | . . . . Recycling Units 2 | . 2 . . Scanalyzers . | . . . . Garrison Access . | . . . . Terminal Hacks 7 | . 2 . 5 Record 5 | . . . 5 Prototype ID Bank 1 | . 1 . . Zone Layout 1 | . 1 . . Fabricator Hacks . | . . . . Repair Station Hacks . | . . . . Recycling Unit Hacks . | . . . . Scanalyzer . | . . . . Garrison Access Hacks . | . . . . Unauthorized Hacks 1 | . 1 . . Terminals . | . . . . Fabricators . | . . . . Repair Stations . | . . . . Recycling Units 1 | . 1 . . Tunnel 1 | . 1 . . Scanalyzers . | . . . . Garrison Access . | . . . . Data Cores Recovered . | . . . . Used . | . . . . Hacking Detections 1 | . 1 . . Full Trace Events . | . . . . Feedback Events . | . . . . Feedback Blocked . | . . . . Robot Schematics Acquired . | . . . . Robots Built . | . . . . Authchips . | . . . . Time . | . . . . Total Robot Build Rating . | . . . . Part Schematics Acquired . | . . . . Parts Built . | . . . . Authchips . | . . . . Time . | . . . . Total Part Build Rating . | . . . . Parts Repaired . | . . . . Time . | . . . . Parts Recycled . | . . . . Recycled Matter . | . . . . Retrieved Matter . | . . . . Retrieved Components . | . . . . Parts Scanalyzed . | . . . . Part Schematics Acquired . | . . . . Parts Damaged . | . . . . Bothacking | -11 -10 -10 -10 ------------ Run | Yrd Mat Min Sub Used RIF Installer . | . . . . Robots Hacked . | . . . . Non-combat . | . . . . Combat . | . . . . Robot Hacks Applied . | . . . . Relay Couplers Released . | . . . . Fabnet Peak Effective % . | . . . . Robots Rewired . | . . . . Allies Hacked . | . . . . Hacks Repelled . | . . . . Allies | -11 -10 -10 -10 -------- Run | Yrd Mat Min Sub Total Allies . | . . . . Largest Group . | . . . . Highest-Rated Group . | . . . . Highest-Rated Ally . | . . . . Total Orders . | . . . . Ally Attacks . | . . . . Total Damage . | . . . . Kills . | . . . . Allies Corrupted . | . . . . Allies Melted . | . . . . Intel | -11 -10 -10 -10 ------- Run | Yrd Mat Min Sub Robot Analysis Total . | . . . . Derelict Logs Recovered 1 | . . 1 . Drone Launches . | . . . . Drone Recoveries . | . . . . Exploration | -11 -10 -10 -10 ------------- Run | Yrd Mat Min Sub Turns Passed 2593 | . 289 730 1574 Spaces Moved 1626 | 1 204 536 885 Core . | . . . . Treads 849 | . . . 849 Legs 777 | 1 204 536 36 Wheels . | . . . . Hover . | . . . . Flight . | . . . . Fastest Speed 120 | 120 120 120 120 Average Speed 140 | 120 120 120 158 Slowest Speed 160 | 120 120 120 160 Overloaded Moves . | . . . . Propulsion Burnouts . | . . . . Robots Hopped . | . . . . Cave-ins Triggered . | . . . . Exploration Rate (%) 43 | 2 32 98 43 Regions Visited 3 Branch Regions 2 Pre-discovered Areas 2 | . 1 1 . Known Exits Taken . | . . . . Unknown Exits Taken 3 | 1 1 1 . Scrap Searched 6 | . . 1 5 Spaces Dug 13 | . . . 13 Terrain Destroyed 118 | . . 3 115 Melee . | . . . . Projectile . | . . . . AOE 118 | . . 3 115 Terrain Rammed . | . . . . Walls Destroyed . | . . . . Machines Disabled . | . . . . Actions | -11 -10 -10 -10 --------- Run | Yrd Mat Min Sub Total 1800 | . 242 575 983 Wait 63 | . 28 8 27 Move 1623 | . 203 535 885 Hop . | . . . . Pick Up 12 | . 3 2 7 Fast Attach 2 | . 1 1 . Attach 4 | . . . 4 Detach . | . . . . Swap 17 | . 1 3 13 Drop 9 | . 2 2 5 Fire 67 | . 3 24 40 Melee 2 | . . . 2 Ram . | . . . . Kick 1 | . 1 . . Crush . | . . . . Escape Stasis . | . . . . Rewire . | . . . . Trap . | . . . . Miscellaneous . | . . . . Route ------- -11/Scrapyard -10/Materials (discovered 2 exits: [*Mat] / [*Min]) -10/Mines (discovered 3 exits: [*Mat x2] / *Sub) -10/Subcaves (discovered 2 exits: [*Mat x2]) History --------- Turn | Location | Event 1 | -11/Scrapyard | Discovered new exit (range 0) 1 | -11/Scrapyard | Entered Materials 28 | -10/Materials | Discovered new exit (range 8) 257 | -10/Materials | Discovered new exit (range 13) 290 | -10/Materials | Entered Mines 302 | -10/Mines | Build established: Mutant 418 | -10/Mines | A weapon hastily lodged in a ceiling crevice suddenly fell to the ground 431 | -10/Mines | Received a Rocket Launcher from a helpful Derelict 511 | -10/Mines | Discovered new exit (range 8) 604 | -10/Mines | Discovered new exit (range 10) 827 | -10/Mines | Discovered new exit (range 16) 887 | -10/Mines | Found DCF Scrap (14 items) 1020 | -10/Mines | Entered Subcaves 1410 | -10/Subcaves | Visited Clippyterm 1415 | -10/Subcaves | Learned Research security intel 1415 | -10/Subcaves | Learned Factory garrison access intel 1453 | -10/Subcaves | Discovered new exit (range 12) 1468 | -10/Subcaves | Core integrity fell below 50% 1856 | -10/Subcaves | A swath of the cavern ceiling suddenly collapsed 2066 | -10/Subcaves | Disturbed a concealed Subdweller 2125 | -10/Subcaves | Ambushed by Subdweller buried in earth 2218 | -10/Subcaves | Discovered new exit (range 14) 2569 | -10/Subcaves | Disturbed a concealed Subdweller 2574 | -10/Subcaves | Disturbed a concealed Subdweller 2579 | -10/Subcaves | Core integrity fell below 20% 2594 | -10/Subcaves | Destroyed by TL-W0M(R) with Subdweller Machine Gun Last Messages --------------- Twisted Machinery. 02571_ Acquired 10 matter. 02572_ Acquired 7 matter. 02574_ TL-W0M(R) angrily emerges from the Twisted Machinery. 02575_ Acquired 7 matter. 02577_ PI-6AS(R) knocked back. 02578_ Acquired 7 matter. 02580_ PI-6AS(R) Disposable Heat Sink blasted off. 02581_ Acquired 7 matter. 02581_ PI-6AS(R) affixes Scrap Shield Fragment to Scrap Shield. 02583_ PI-6AS(R) destroyed. 02584_ Acquired 7 matter. 02586_ Lgt. Treads destroyed. 02587_ Acquired 2 matter. 02590_ Acquired 6 matter. 02593_ TL-W0M(R) affixes Scrap Shield Fragment to Scrap Shield. Map ----- +----------------------------------------------------+ | | | | | | | ?????????????????????????????????????????????????? | | ?????????????????????????????????????????????????? | | ?????????????????????????????????????????????????? | | ?????????????????????????????????????????????????? | | ?????????????????????????????????????????????????? | | ?????????????????????????????????????????????????? | | ?????????????????????????????????????????????????? | | ?????????????????????????????????????????????????? | | ?????????????????????????????????????????????????? | | ?????????????????????????????????????????????????? | | ?????????????????????????????????????????????????? | | ?????????????????????????????????????????????????? | | ?????????????????????????????????????????????????? | | ?????????????????????????????????????????????????? | | ???????????????????????????????????#########?????? | | ??????????????????????????????????##########?????? | | ????????????????????############??## ##?????? | | ????????????????????############??# ###?????? | | ????????????????????## #### ###??????? | | ???????????????????? # ##### #### ###???????? | | ???????????????????? # #<$<## ### ####?? ##???? | | ????????????????????## #<